bitfinex/quotes_ETHUSD_20220309
["timestamp","ask_amount","ask_price","bid_price","bid_amount"]
[1646803907811,1.11128979,2715.4,2715.3,0.36103338]
[1646803908011,1.11128979,2715.4,2715.2,0.00621173]
[1646803908213,1.11128979,2715.4,2715.3,0.36103338]
[1646803908410,1.11128979,2715.4,2715.2,0.00621173]
[1646803908611,1.11128979,2715.4,2715.3,0.36103338]
[1646803908855,1.11128979,2715.4,2715.2,0.00621172]
[1646803909060,1.11128979,2715.4,2715.3,0.36103338]
[1646803909261,4.61128979,2715.4,2715.3,0.36103338]
[1646803909460,4.61128979,2715.4,2715.2,0.00621172]
[1646803909660,0.55269117,2715.6,2715.3,0.36103338]
[1646803909861,4.61139732,2715.5,2715.0,1.0]
[1646803910061,1.11139732,2715.4,2715.2,0.00621173]
[1646803910261,3.5,2715.3,2715.2,0.00621173]
[1646803910462,4.61139732,2715.3,2715.2,0.39563228]
[1646803910961,4.61139732,2715.3,2715.2,0.38942055]
[1646803912614,1.12974977,2715.2,2715.1,0.00621295]
[1646803912803,5.74114709,2715.2,2715.1,0.3959128]
[1646803913003,2.24114709,2715.2,2715.1,0.3959128]
[1646803913408,2.24114709,2715.2,2715.1,0.38969985]
[1646803913610,5.74114709,2715.2,2715.1,0.38969985]
[1646803913807,2.24114709,2715.2,2715.1,0.38969985]
[1646803914210,5.74017812,2715.2,2715.1,0.38969985]
[1646803914610,2.24017812,2715.2,2715.1,0.38969985]
[1646803916462,1.11139732,2715.2,2715.1,0.38969985]
[1646803916862,4.61139732,2715.3,2715.1,0.38969985]
[1646803917066,1.11139732,2715.2,2715.1,0.38969985]
[1646803918564,4.61139732,2715.3,2715.1,0.38969985]
[1646803918764,4.61139732,2715.2,2715.1,0.38969985]
[1646803919364,5.51165367,2715.2,2715.1,0.38969985]
[1646803919768,5.51165367,2715.2,2715.0,1.00621224]
[1646803919963,4.61139732,2715.1,2715.0,1.00621224]
[1646803920210,4.61139732,2715.1,2715.0,1.40210056]
[1646803920415,4.61139732,2715.1,2715.0,1.00621224]
[1646803920613,4.61139732,2715.1,2715.0,1.3958872]
[1646803920813,4.61139732,2715.1,2715.0,1.0]
[1646803921015,4.61139732,2715.1,2715.0,1.39588782]
[1646803921214,4.61139732,2715.1,2715.0,1.0]
[1646803921417,4.61139732,2715.1,2715.0,1.3958696]
[1646803922321,4.61139732,2715.1,2715.0,1.40524247]
[1646803922322,16.28639732,2715.1,2715.0,1.40524247]
[1646803922615,16.28639732,2715.1,2714.2,0.3682]
[1646803922616,1.60462633,2714.5,2714.2,0.3682]
[1646803922816,1.11139732,2714.4,2714.3,0.40543085]
[1646803923317,2.06725892,2714.4,2714.3,0.40543085]
[1646803924463,5.56725892,2714.4,2714.3,0.40543085]
[1646803924867,2.06725892,2714.4,2714.3,0.40543085]
[1646803925064,0.9558616,2714.4,2714.3,0.40543085]
[1646803925264,2.03330731,2714.4,2714.3,0.40543085]
[1646803925463,1.51328787,2714.4,2714.3,0.40543085]
[1646803926266,2.59061327,2714.4,2714.3,0.40543085]
[1646803926664,1.51328787,2714.4,2714.3,0.40543085]
[1646803927469,5.01328787,2714.4,2714.3,0.40543085]
[1646803928812,1.51328787,2714.4,2714.3,0.40543085]
[1646803929017,0.55742627,2714.4,2714.3,0.40543085]
[1646803931863,1.59119981,2714.4,2714.3,0.40543085]
[1646803932263,5.09119981,2714.4,2714.3,0.40543085]
[1646803934667,16.32119981,2714.4,2714.3,0.40543085]
[1646803936008,16.32119981,2714.4,2714.2,0.37435539]
[1646803936209,14.73,2714.3,2714.2,0.3682]
[1646803936409,14.73,2714.3,2714.2,0.37436755]
[1646803936608,14.73,2714.3,2714.2,0.79685551]
[1646803937311,14.73,2714.3,2714.2,0.42248796]
[1646803937710,14.73,2714.3,2714.1,0.00616776]
[1646803937913,3.5,2714.2,2714.1,0.00616776]
[1646803938312,3.5,2714.2,2714.1,0.4284953]
[1646803938962,3.5,2714.2,2714.1,0.42232754]
[1646803939967,14.73,2714.2,2714.0,0.01232752]
[1646803940169,15.65164,2714.1,2714.0,0.00615956]
[1646803940369,16.09664,2714.1,2714.0,0.00615956]
[1646803940673,17.31457936,2714.1,2714.0,0.00615956]
[1646803940869,0.94507578,2713.4,2713.2,0.02464525]
[1646803941068,3.5,2713.3,2713.2,0.02464525]
[1646803941271,0.94507578,2713.4,2713.2,0.04929042]
[1646803941468,0.94507578,2713.4,2713.2,0.44713092]
[1646803941667,0.94507578,2713.4,2713.3,0.42248575]
[1646803942619,4.42188,2713.5,2713.3,0.42248575]
[1646803942809,0.445,2713.6,2713.4,0.42248575]
[1646803943009,0.445,2713.6,2713.5,0.42248575]
[1646803943216,11.675,2713.6,2713.5,0.42248575]
[1646803943411,12.23452534,2713.6,2713.5,0.42248575]
[1646803944116,13.16556451,2713.6,2713.5,0.42248575]
[1646803944516,13.16556451,2713.6,2713.4,0.00612488]
[1646803944716,11.23,2713.5,2713.4,0.00612488]
[1646803944915,11.675,2713.5,2713.4,0.38542559]
[1646803945720,11.675,2713.5,2712.6,1.04327503]
[1646803945916,11.23,2713.4,2712.7,0.37911244]
[1646803946117,11.675,2713.3,2712.8,0.37911244]
[1646803946363,11.675,2713.3,2712.9,0.40361606]
[1646803946562,11.675,2713.3,2713.0,0.37911244]
[1646803947162,11.675,2713.3,2713.0,0.38533611]
[1646803947362,11.675,2713.3,2713.1,0.37911244]
[1646803947363,0.445,2713.3,2713.1,0.37911244]
[1646803948367,0.445,2713.3,2713.2,0.37911244]
[1646803948565,1.72312534,2713.6,2713.2,0.37911244]
[1646803948764,0.55952534,2713.6,2713.2,0.37911244]
[1646803949671,0.55952534,2713.6,2712.9,1.13297026]
[1646803949672,0.55952534,2713.6,2713.3,0.38533549]
[1646803949870,0.55952534,2713.6,2713.4,0.37911244]
[1646803950921,0.55952534,2713.6,2713.5,0.37911244]
[1646803951117,0.46739804,2713.6,2713.5,0.37911244]
[1646803953120,0.46739804,2713.6,2712.7,1.2291]
[1646803953320,0.46739804,2713.6,2713.4,0.00561897]
[1646803954166,0.46739804,2713.6,2712.7,1.2291]
[1646803954368,0.46739804,2713.6,2713.4,0.00566791]
[1646803954768,11.69739804,2713.6,2713.4,0.00566791]
[1646803955370,11.69739804,2713.6,2713.5,0.37444282]
[1646803955569,11.69739804,2713.6,2713.4,0.00626662]
[1646803955772,11.69739804,2713.6,2713.5,0.37444282]
[1646803956370,11.69739804,2713.6,2713.4,0.00626662]
[1646803956569,11.69739804,2713.6,2713.5,0.37444282]
[1646803956970,11.69739804,2713.6,2713.4,0.00626652]
[1646803957170,11.69739804,2713.6,2713.5,0.37444282]
[1646803957620,11.69739804,2713.6,2713.4,0.00626652]
[1646803957811,11.23,2713.4,2712.8,0.67497503]
[1646803958110,11.23,2713.4,2712.7,1.2291]
[1646803958111,11.23,2713.4,2713.0,0.0248619]
[1646803958712,0.46739804,2713.6,2713.0,0.0248619]
[1646803958713,11.23,2713.3,2713.0,0.0248619]
[1646803958913,0.87214061,2713.1,2713.0,0.0248619]
[1646803959114,0.87214061,2713.1,2712.6,0.67497503]
[1646803960716,12.10214061,2713.1,2712.6,0.67497503]
[1646803961763,12.10214061,2713.1,2712.7,0.00664248]
[1646803962464,12.10214061,2713.1,2712.7,0.68161751]
[1646803962666,10.49073801,2713.4,2712.7,0.67497503]
[1646803962866,11.35646377,2712.9,2712.8,0.00664237]
[1646803963065,10.49073801,2712.9,2712.8,0.00664237]
[1646803963267,11.23,2713.2,2712.8,0.00664237]
[1646803963871,0.445,2713.3,2712.7,0.67497503]
[1646803964069,1.03204451,2713.1,2712.7,0.63161718]
[1646803965312,1.03204451,2713.1,2712.5,0.1842]
[1646803965712,12.26204451,2713.1,2712.5,0.1842]
[1646803966416,1.03204451,2713.1,2712.7,0.00581909]
[1646803966614,12.59701,2713.3,2712.7,0.00581909]
[1646803966812,0.445,2713.3,2712.7,0.00581909]
[1646803967415,11.23,2713.2,2712.5,0.1342]
[1646803967613,1.06756243,2712.8,2712.5,0.1342]
[1646803967814,1.06756243,2712.8,2712.3,0.02327989]
[1646803968014,1.51256243,2712.8,2712.3,0.02327989]
[1646803968861,1.51256243,2712.8,2712.0,0.89827798]
[1646803968862,1.51256243,2712.8,2712.4,0.00642392]
[1646803969068,2.05652393,2712.8,2712.4,0.00642392]
[1646803969265,13.28652393,2712.8,2712.4,0.00642392]
[1646803969466,3.5,2712.7,2712.4,0.00642392]
[1646803969667,3.945,2712.7,2712.4,0.00642392]
[1646803969869,3.945,2712.7,2711.9,0.89827798]
[1646803970067,3.945,2712.7,2712.5,0.00622611]
[1646803970471,3.5,2712.6,2712.5,0.00622611]
[1646803971069,3.5,2712.6,2711.9,0.89827798]
[1646803971269,3.5,2712.6,2712.4,0.00622621]
[1646803971672,3.945,2712.7,2712.4,0.00622621]
[1646803971870,15.175,2712.7,2712.4,0.00622621]
[1646803972269,15.175,2712.7,2711.9,0.89827798]
[1646803972470,0.445,2712.7,2712.4,0.00622621]
[1646803973722,0.445,2712.7,2712.4,0.0062148]
[1646803973923,1.61152393,2712.8,2712.4,0.0062148]
[1646803974327,0.5439615,2712.8,2712.4,0.68151671]
[1646803974824,0.5439615,2712.8,2712.5,0.0062147]
[1646803975822,0.5439615,2712.8,2712.4,0.67530191]
[1646803976123,0.5439615,2712.8,2712.5,0.0062146]
[1646803976967,0.5439615,2712.8,2712.4,0.67530191]
[1646803977366,0.5439615,2712.8,2712.5,0.00621859]
[1646803977769,0.5439615,2712.8,2712.6,0.3327226]
[1646803978371,0.5439615,2712.8,2712.7,0.3327226]
[1646803979773,0.5439615,2712.8,2712.6,0.00621838]
[1646803979973,0.5439615,2712.8,2712.7,0.3327226]
[1646803980216,1.47973986,2712.8,2712.7,0.3327226]
[1646803980814,1.47973986,2712.8,2712.6,0.00615444]
[1646803981015,0.5439615,2712.8,2712.7,0.3327226]
[1646803981216,7.37394614,2713.6,2712.7,0.3327226]
[1646803981417,3.87394614,2713.6,2712.7,0.3327226]
[1646803981615,3.87394614,2713.6,2712.7,0.6327226]
[1646803981822,1.1640543,2713.5,2712.8,1.04290191]
[1646803982021,3.87394614,2713.6,2713.1,0.67530191]
[1646803982224,1.04955732,2713.5,2713.1,0.67530191]
[1646803982821,0.33776954,2713.5,2713.1,0.67530191]
[1646803983622,0.33776954,2713.5,2713.1,1.00802451]
[1646803983873,0.33776954,2713.5,2713.2,0.3327226]
[1646803984073,3.83776954,2713.5,2713.0,0.67530191]
[1646803984272,3.83776954,2713.5,2712.9,1.00802451]
[1646803984474,0.33776954,2713.5,2713.0,0.3327226]
[1646803984672,0.33776954,2713.5,2713.1,0.3327226]
[1646803984877,0.33776954,2713.5,2713.2,0.3327226]
[1646803985074,0.33776954,2713.5,2713.3,0.3327226]
[1646803985275,0.33776954,2713.5,2713.1,0.3327226]
[1646803985474,0.33776954,2713.5,2713.2,0.3327226]
[1646803985677,0.33776954,2713.5,2713.3,0.3327226]
[1646803985878,0.33776954,2713.5,2713.4,0.3327226]
[1646803986476,1.50236428,2713.5,2713.1,0.3327226]
[1646803986675,1.16459474,2713.4,2713.2,0.3327226]
[1646803986876,1.16459474,2713.4,2713.3,0.3327226]
[1646803987278,1.16459474,2713.4,2712.9,0.67530191]
[1646803987279,1.16459474,2713.4,2712.9,1.00802451]
[1646803987482,1.16459474,2713.4,2713.0,0.3327226]
[1646803987717,1.16459474,2713.4,2713.1,0.3327226]
[1646803987926,3.5,2713.3,2713.2,0.3327226]
[1646803988122,14.73,2713.3,2713.2,0.3327226]
[1646803988323,14.73,2713.3,2712.8,0.68151766]
[1646803988324,16.33959474,2713.3,2712.8,0.68151766]
[1646803988523,1.16459474,2713.2,2712.9,0.3327226]
[1646803988721,1.16459474,2713.2,2712.8,0.00621575]
[1646803988722,1.16459474,2713.2,2713.0,0.3327226]
[1646803988925,1.16459474,2713.2,2713.1,0.3327226]
[1646803989324,1.16459474,2713.2,2712.6,1.00802451]
[1646803989524,2.09279693,2713.2,2712.8,0.00621573]
[1646803989723,1.16459474,2713.1,2712.9,0.3327226]
[1646803989930,1.16459474,2713.1,2712.6,0.67530191]
[1646803989931,9.945,2713.0,2712.4,0.67721292]
[1646803990130,12.39459474,2712.9,2712.5,0.3083956]
[1646803990325,1.17652681,2713.1,2711.9,9.50367798]
[1646803990326,11.23,2712.6,2711.9,9.50367798]
[1646803990523,11.23,2712.6,2712.0,0.2899732]
[1646803990723,0.445,2712.5,2712.0,0.2899732]
[1646803990923,1.0218697,2712.2,2712.1,0.2899732]
[1646803992470,0.56589789,2712.6,2712.1,0.2899732]
[1646803992673,0.56589789,2712.6,2712.2,0.2899732]
[1646803993070,0.56589789,2712.6,2712.3,0.2899732]
[1646803993271,0.56589789,2712.6,2712.4,0.2899732]
[1646803993473,0.56589789,2712.6,2712.5,0.2899732]
[1646803994579,0.00204918,2713.4,2712.7,0.9216739]
[1646803994776,0.00204918,2713.4,2712.8,0.6575732]
[1646803994777,1.2397983,2713.4,2712.8,0.6575732]
[1646803994971,1.2397983,2713.4,2712.9,0.2899732]
[1646803995222,0.00204918,2713.4,2713.0,0.2899732]
[1646803995416,1.23776711,2713.5,2713.1,0.2899732]
[1646803995616,0.00204922,2713.4,2713.2,0.2899732]
[1646803995816,0.00204922,2713.4,2713.3,0.2899732]
[1646803996520,0.00204975,2713.4,2713.3,0.2899732]
[1646803996926,1.18981686,2713.5,2713.3,0.2899732]
[1646803997120,1.18981686,2713.5,2712.7,0.90451759]
[1646803997320,1.18981686,2713.5,2712.7,1.20451759]
[1646803997520,0.2,2712.8,2712.7,1.56587798]
[1646803998623,0.2,2712.8,2712.7,2.48749798]
[1646803998863,0.2,2712.8,2712.7,1.58922]
[1646803999668,0.7411667,2712.8,2712.7,1.58922]
[1646804000069,0.46739804,2713.6,2712.7,1.58922]
[1646804000070,0.46739804,2713.6,2712.8,5.0]
[1646804000273,0.46739804,2713.6,2713.2,0.67652138]
[1646804000870,0.46739804,2713.6,2713.0,1.22154]
[1646804000871,0.46739804,2713.6,2713.1,0.67652138]
[1646804001071,0.46739804,2713.6,2713.0,0.3]
[1646804001072,0.46739804,2713.6,2713.0,0.97652138]
[1646804001671,0.46739804,2713.6,2713.1,0.67652138]
[1646804001871,0.46739804,2713.6,2713.1,1.59808968]
[1646804002069,0.46739804,2713.6,2713.1,1.89808968]
[1646804002714,0.29868015,2713.6,2713.1,1.89808968]
[1646804003519,0.29868015,2713.6,2713.1,0.97652138]
[1646804003920,0.94445643,2713.4,2713.1,0.3]
[1646804004121,0.94445643,2713.4,2713.0,0.67652138]
[1646804004521,0.94445643,2713.4,2712.9,0.67652138]
[1646804004720,0.94445643,2713.4,2712.8,0.68214059]
[1646804004920,0.94650311,2713.4,2712.8,0.01185193]
[1646804005120,0.94650311,2713.4,2712.8,0.00623272]
[1646804005321,0.94650311,2713.4,2712.8,0.6827541]
[1646804005722,0.94650311,2713.4,2712.8,0.67652138]
[1646804005923,0.94445643,2713.4,2712.8,0.67652138]
[1646804006123,0.94650303,2713.4,2712.8,0.68275254]
[1646804006567,0.94650303,2713.4,2712.9,0.67652138]
[1646804007168,0.94445643,2713.4,2713.0,0.67652138]
[1646804007369,0.94650307,2713.4,2713.0,0.67652138]
[1646804007869,0.94650307,2713.4,2712.9,0.67652138]
[1646804008274,0.94445643,2713.4,2712.9,0.67652138]
[1646804008676,0.94650311,2713.4,2712.9,0.67652138]
[1646804009277,0.94650311,2713.4,2713.0,0.67652138]
[1646804009477,0.29868015,2713.6,2713.0,0.67652138]
[1646804009877,0.00204664,2713.4,2713.0,0.67652138]
[1646804010525,0.00204664,2713.4,2713.1,0.67652138]
[1646804010729,0.29868015,2713.6,2713.1,0.67652138]
[1646804010926,0.00204668,2713.4,2713.1,0.67652138]
[1646804011526,0.00204668,2713.4,2713.0,0.67652138]
[1646804011926,0.29868015,2713.6,2713.0,0.67652138]
[1646804012127,0.00204672,2713.4,2713.0,0.67652138]
[1646804013029,0.29868015,2713.6,2712.9,0.67652138]
[1646804013231,0.29868015,2713.6,2713.0,0.67652138]
[1646804013429,0.00204302,2713.4,2713.0,0.67652138]
[1646804014268,0.29868015,2713.6,2713.0,0.67652138]
[1646804014469,0.00204302,2713.4,2713.0,0.67652138]
[1646804014670,0.00204302,2713.4,2713.1,0.67652138]
[1646804014872,0.00204302,2713.4,2713.1,0.54452138]
[1646804015674,0.00204306,2713.4,2713.1,0.54452138]
[1646804016676,0.29868015,2713.6,2713.1,0.54452138]
[1646804016876,0.00167394,2713.4,2713.1,0.54452138]
[1646804017826,0.29868015,2713.6,2712.9,0.2710711]
[1646804018030,0.00167394,2713.4,2713.0,0.2710711]
[1646804018231,0.00167394,2713.4,2713.1,0.2710711]
[1646804018435,0.00167394,2713.4,2713.1,3.93716769]
[1646804018630,0.00167394,2713.4,2713.3,0.90206659]
[1646804018829,0.00167394,2713.4,2713.3,1.17313769]
[1646804019029,0.29868015,2713.6,2713.3,1.17313769]
[1646804019432,0.29868015,2713.6,2713.4,1.84264]
[1646804019631,0.29868015,2713.6,2713.5,0.2710711]
[1646804021233,0.29868015,2713.6,2713.4,0.2710711]
[1646804021493,0.29868015,2713.6,2713.5,0.2710711]
[1646804021791,0.29868015,2713.6,2713.4,0.2710711]
[1646804021988,1.23834856,2713.6,2713.5,0.2710711]
[1646804022396,0.29868015,2713.6,2713.4,0.2710711]
[1646804022592,0.29868015,2713.6,2713.5,0.2710711]
[1646804022791,0.18574505,2713.6,2713.4,0.2710711]
[1646804024193,0.18767977,2713.6,2713.4,0.2710711]
[1646804024994,0.18574505,2713.6,2713.4,0.94652773]
[1646804025224,0.18767977,2713.6,2713.4,0.94652773]
[1646804026228,0.18574505,2713.6,2713.4,0.2710711]
[1646804026426,0.18574505,2713.6,2713.4,0.94652773]
[1646804026624,0.18767977,2713.6,2713.4,0.94652773]
[1646804027828,0.18779519,2713.6,2713.4,0.94652773]
[1646804028228,0.18779519,2713.6,2713.5,0.2710711]
[1646804028878,0.18984533,2713.6,2713.3,0.67545663]
[1646804029071,0.18779519,2713.6,2713.3,1.59689413]
[1646804029270,0.18779519,2713.6,2713.4,0.2710711]
[1646804029670,0.18779519,2713.6,2713.4,0.94652773]
[1646804029871,0.18574505,2713.6,2713.4,0.94652773]
[1646804030071,0.18779519,2713.6,2713.4,0.94652773]
[1646804030370,0.18779519,2713.6,2713.5,0.2710711]
[1646804030971,0.18779519,2713.6,2713.4,0.67545663]
[1646804031477,0.18574505,2713.6,2713.5,0.2710711]
[1646804031672,0.18574505,2713.6,2713.3,0.67545663]
[1646804031972,0.18574505,2713.6,2713.4,0.67545663]
[1646804032373,0.18574505,2713.6,2713.5,0.2710711]
[1646804032616,0.18779519,2713.6,2713.5,0.2710711]
[1646804033015,0.18779519,2713.6,2713.3,0.67545663]
[1646804033817,0.18574505,2713.6,2713.3,0.67545663]
[1646804034823,0.18574505,2713.6,2713.4,0.67545663]
[1646804035022,0.18574505,2713.6,2713.5,0.94652773]
[1646804035323,21.51892295,2714.2,2713.7,1.84249]
[1646804035522,22.07040694,2714.2,2713.8,0.94623336]
[1646804035724,22.07040694,2714.2,2713.9,0.94623336]
[1646804035925,22.07040694,2714.2,2714.1,0.67516226]
[1646804036123,22.07040694,2714.2,2714.1,0.2710711]
[1646804036578,22.07040694,2714.2,2714.0,0.67516226]
[1646804036776,22.07040694,2714.2,2713.9,0.67516226]
[1646804036976,22.07040694,2714.2,2713.9,0.94623336]
[1646804037177,22.07040694,2714.2,2714.0,0.2710711]
[1646804037382,22.07040694,2714.2,2714.1,0.2710711]
[1646804037581,22.07040694,2714.2,2714.0,0.2710711]
[1646804037880,22.07040694,2714.2,2714.1,0.2710711]
[1646804038081,1.60462633,2714.5,2714.1,0.2710711]
[1646804038281,1.60462633,2714.5,2713.7,0.67516226]
[1646804038282,2.16713323,2714.5,2714.2,0.2710711]
[1646804038480,2.16713323,2714.5,2714.3,0.2710711]
[1646804038681,2.16713323,2714.5,2714.4,0.2710711]
[1646804039281,2.78802242,2714.5,2714.4,0.2710711]
[1646804039490,7.52551044,2714.5,2714.4,0.2710711]
[1646804039682,4.02551044,2714.5,2714.4,0.2710711]
[1646804041025,2.78802242,2714.5,2714.4,0.2710711]
[1646804041223,1.60462633,2714.5,2714.4,0.2710711]
[1646804041725,0.00247507,2715.0,2714.4,0.2710711]
[1646804041923,1.24292348,2715.0,2714.5,0.2710711]
[1646804042124,1.24044841,2715.0,2714.6,0.2710711]
[1646804042323,0.95213964,2714.8,2714.7,0.2710711]
[1646804042526,2.19258805,2714.8,2714.1,0.94623336]
[1646804042726,0.00247507,2715.0,2714.2,0.67516226]
[1646804042924,0.00247507,2715.0,2714.9,0.79311322]
[1646804043124,1.23055807,2715.1,2714.9,1.06418432]
[1646804043324,0.13819997,2715.5,2715.0,0.27114498]
[1646804043625,1.22989959,2715.4,2715.0,0.27114498]
[1646804044277,1.1853,2715.7,2715.0,0.27114498]
[1646804044278,1.22989959,2715.3,2715.0,0.27114498]
[1646804044477,1.2496,2715.9,2715.0,0.27114498]
[1646804044674,6.5675002,2716.0,2715.0,1.19198498]
[1646804044675,1.25925337,2715.8,2715.0,1.19198498]
[1646804044876,1.25925337,2715.7,2715.1,0.27114498]
[1646804045076,1.18260038,2715.9,2715.3,1.841307]
[1646804045275,1.18260038,2715.9,2715.4,0.27114498]
[1646804045477,0.00096,2716.4,2715.5,0.27114498]
[1646804045674,1.2572154,2716.5,2715.6,0.27114498]
[1646804045875,1.2572154,2716.5,2715.8,0.92057]
[1646804046076,1.2572154,2716.5,2715.7,0.24097536]
[1646804046275,3.5,2716.4,2715.7,0.24097536]
[1646804046478,1.2572154,2716.5,2715.4,0.3]
[1646804046479,1.9332156,2716.5,2715.4,0.3]
[1646804046676,4.7572154,2716.4,2715.5,0.24099042]
[1646804046880,4.7572154,2716.4,2715.3,2.14129]
[1646804046881,1.2572154,2716.3,2715.6,0.24099042]
[1646804047076,1.2572154,2716.3,2715.2,2.4713]
[1646804047077,0.00206423,2716.2,2715.2,2.3265]
[1646804047285,0.00206423,2716.2,2715.3,0.24103827]
[1646804047930,3.5,2716.2,2715.3,0.24103827]
[1646804048131,1.2572154,2716.1,2715.3,0.24103827]
[1646804048331,0.00206423,2715.9,2715.3,0.24103827]
[1646804048531,1.23496228,2715.7,2715.3,1.16169437]
[1646804048733,1.23496228,2715.7,2715.4,1.16171827]
[1646804048930,1.23496228,2715.7,2715.4,0.92068]
[1646804049332,0.00206423,2715.6,2715.4,1.10478]
[1646804049932,0.00206423,2715.6,2715.4,0.92068]
[1646804050335,1.23496228,2715.7,2715.4,0.92068]
[1646804050533,0.00206423,2715.6,2715.4,0.92068]
[1646804050735,0.00206423,2715.6,2715.0,0.1841]
[1646804050736,3.50206423,2715.6,2715.0,0.1841]
[1646804050940,6.0,2715.5,2714.9,0.79311322]
[1646804051140,6.0,2715.5,2714.3,0.1841]
[1646804051141,0.01229903,2715.0,2714.3,0.1841]
[1646804051415,11.23,2714.8,2713.7,0.5]
[1646804051602,0.445,2714.9,2713.7,0.5]
[1646804051603,11.23,2714.6,2713.7,0.5]
[1646804051802,0.445,2714.9,2713.3,0.67516226]
[1646804051803,1.07467505,2713.8,2713.3,0.67516226]
[1646804052006,1.07467505,2713.8,2713.2,0.15404061]
[1646804052007,1.07467505,2713.8,2713.2,1.01340287]
[1646804052206,1.07467505,2713.8,2713.2,0.33824061]
[1646804053006,0.00206423,2713.6,2713.2,1.01340287]
[1646804053207,0.00206423,2713.6,2713.2,0.33824061]
[1646804054010,1.07467505,2713.8,2713.2,0.33824061]
[1646804054210,0.00206423,2713.5,2713.2,0.33824061]
[1646804054512,0.00206423,2713.5,2713.2,1.01340287]
[1646804055125,3.5,2714.0,2713.2,1.01340287]
[1646804055325,0.445,2714.1,2713.3,0.67516226]
[1646804055524,0.00206423,2713.5,2713.4,0.1842]
[1646804055726,0.00206423,2713.5,2713.3,0.67516226]
[1646804056126,0.00206423,2713.5,2713.2,0.82920287]
[1646804056523,0.00412846,2713.5,2713.2,0.82920287]
[1646804056727,0.00206423,2713.5,2713.3,0.67516226]
[1646804056928,0.00206423,2713.5,2713.2,0.82920287]
[1646804057333,0.00206423,2713.5,2713.3,0.67516226]
[1646804057531,1.08606939,2713.9,2713.3,0.67516226]
[1646804057829,0.00206423,2713.5,2713.3,0.67516226]
[1646804058628,0.00206423,2713.5,2713.2,0.15404061]
[1646804058629,3.5,2713.8,2713.2,0.82920287]
[1646804058870,1.08606939,2713.9,2713.2,0.82920287]
[1646804059072,0.00206423,2713.5,2713.2,0.82920287]
[1646804059472,0.00206423,2713.5,2713.3,0.67516226]
[1646804059876,3.5,2714.1,2713.3,0.67516226]
[1646804060075,3.5,2714.2,2713.4,0.67516226]
[1646804060274,0.00206423,2713.5,2713.4,0.67516226]
[1646804061075,0.13819997,2714.3,2713.4,0.67516226]
[1646804061275,1.13681969,2714.1,2713.4,0.67516226]
[1646804061476,0.00206423,2713.6,2713.4,0.67516226]
[1646804061675,0.00206423,2713.6,2713.5,0.67516226]
[1646804062275,0.13819997,2714.3,2713.5,0.67516226]
[1646804062480,0.13819997,2714.3,2713.5,1.59648226]
[1646804062734,0.00206423,2713.7,2713.5,1.59648226]
[1646804062933,0.09988118,2714.3,2713.5,1.59648226]
[1646804063435,0.09988118,2714.3,2713.6,0.67516226]
[1646804063635,0.09162626,2714.3,2713.6,0.67516226]
[1646804064034,0.09162626,2714.3,2713.5,1.59648226]
[1646804064234,0.09162626,2714.3,2713.6,0.67516226]
[1646804064436,0.09162626,2714.3,2713.5,1.59648226]
[1646804064637,0.09162626,2714.3,2713.6,0.67516226]
[1646804065040,0.08671761,2714.3,2713.6,0.67516226]
[1646804065538,0.08671761,2714.3,2713.6,3.5]
[1646804065739,3.6664,2714.9,2713.6,4.17516226]
[1646804065938,3.6664,2714.9,2713.9,1.59633226]
[1646804066374,0.00247671,2714.5,2713.9,1.89633226]
[1646804067180,0.88945126,2714.8,2713.9,1.89633226]
[1646804067379,0.00205907,2714.3,2713.9,1.59633226]
[1646804068386,2.75797013,2715.1,2713.9,1.59633226]
[1646804068586,0.00205907,2714.2,2714.0,4.17516226]
[1646804068786,0.00205907,2714.2,2714.0,0.67516226]
[1646804069587,0.91999727,2714.9,2714.0,0.67516226]
[1646804069788,0.00205907,2714.2,2714.0,0.67516226]
[1646804069987,0.00205907,2714.2,2713.9,1.78053226]
[1646804070654,0.00205907,2714.2,2714.0,0.67516226]
[1646804070953,3.5193,2715.3,2714.2,0.92106]
[1646804071151,12.4261,2715.6,2714.3,0.24422516]
[1646804071152,1.16949804,2715.2,2714.3,0.24422516]
[1646804071352,12.4261,2715.6,2714.3,0.24422516]
[1646804071554,1.1961,2715.6,2714.6,1.07922381]
[1646804071751,1.1961,2715.6,2714.4,0.1841]
[1646804072759,1.1961,2715.6,2714.5,0.91119026]
[1646804073356,1.1961,2715.6,2714.5,0.92096]
[1646804074583,1.1961,2715.6,2714.4,0.1841]
[1646804074787,1.18498351,2715.2,2714.4,0.1841]
[1646804075784,0.00204141,2714.9,2714.4,0.1841]
[1646804076786,1.18498351,2715.2,2714.4,0.1841]
[1646804076986,0.00204141,2714.8,2714.4,0.1841]
[1646804078036,1.1961,2715.6,2714.4,0.1841]
[1646804078234,0.00204141,2714.7,2714.4,0.1841]
[1646804079236,1.1961,2715.6,2714.4,0.1841]
[1646804079436,0.00204138,2714.7,2714.4,3.6841]
[1646804079636,0.00204138,2714.7,2714.4,0.1841]
[1646804080437,1.01534999,2715.3,2714.4,3.6841]
[1646804080639,0.00204138,2714.7,2714.4,0.1841]
[1646804081677,1.01534999,2715.3,2714.4,0.1841]
[1646804081879,0.00204138,2714.7,2714.4,0.1841]
[1646804082878,0.00124138,2714.7,2714.4,0.1841]
[1646804083181,0.00204138,2714.7,2714.4,0.1841]
[1646804084183,1.01534999,2715.3,2714.4,0.1841]
[1646804084782,1.1961,2715.6,2714.4,0.1841]
[1646804085836,1.1961,2715.6,2714.4,0.85926226]
[1646804086032,1.1961,2715.6,2714.4,0.1841]
[1646804086432,1.08249464,2715.5,2714.5,1.95349464]
[1646804086732,1.08494397,2715.5,2714.5,0.92095]
[1646804086932,0.00244933,2715.5,2714.5,0.92095]
[1646804087533,1.1961,2715.6,2714.5,0.92095]
[1646804087932,0.00203941,2715.1,2714.5,0.92095]
[1646804089282,0.00203941,2714.9,2714.5,0.92095]
[1646804089982,0.00815644,2715.3,2714.5,0.92095]
[1646804090381,0.00203941,2714.8,2714.5,0.92095]
[1646804091182,0.00203941,2714.8,2714.6,0.26436292]
[1646804091482,0.00181653,2714.8,2714.6,0.26436292]
[1646804092484,2.42284066,2715.6,2714.6,0.26436292]
[1646804092737,0.00181653,2714.8,2714.6,0.26436292]
[1646804093541,2.42284066,2715.6,2714.6,0.26436292]
[1646804093738,1.23819984,2715.5,2714.6,0.26436292]
[1646804093938,0.00181653,2714.8,2714.6,0.26436292]
[1646804095141,0.00203941,2714.8,2714.6,0.26436292]
[1646804095944,0.00203941,2714.8,2714.7,0.26436292]
[1646804096148,1.23852567,2715.1,2714.5,0.26436292]
[1646804096396,0.00203941,2714.8,2714.3,0.26436292]
[1646804096584,0.00203941,2714.8,2714.6,0.26436292]
[1646804096788,1.10440906,2714.8,2714.7,0.26436292]
[1646804096987,1.10440906,2714.8,2714.0,0.67516226]